[Event "FIDE WCCC U10 2018"]
[Site "Santiago de Compostela"]
[Date "2018.11.15"]
[Round "11"]
[White "Cherniaiev, Tykhon"]
[Black "Jin Yueheng"]
[Result "0-1"]
[ECO "B15"]
[WhiteElo "1940"]
[BlackElo "1914"]
[Annotator "NA RC"]
[PlyCount "238"]
[EventDate "2018.11.04"]
[EventType "swiss"]
[EventCountry "ESP"]
[SourceTitle "playchess.com"]
[Source "ChessBase"]
[SourceQuality "1"]
[TimeControl "40/5400+30:1800+30"]

{[%evp 9,237,18,42,20,43,33,32767,32767,33,21,45,47,42,12,27,40,45,28,32767,32767,32767,32767,0,32767,-81,32767,32767,-187,32767,32767,32767,32767,32767,32767,23,2,32767,32767,32767,32767,41,39,-122,26,21,32767,-86,-87,0,-50,0,-102,-55,32767,32767,32767,32767,32767,32767,32767,32767,32767,-5,-6,0,-14,32767,32767,32767,32767,32767,32767,-16,32767,-4,32767,32767,32767,32767,32767,32767,32767,32767,32767,32767,32767,-7,32767,32767,32767,32767,32767,32767,32767,0,32767,32767,32767,32767,32767,32767,-12,-7,-21,-12,-5,-18,0,-11,32767,32767,-31,-7,-8,0,0,0,0,0,-29,0,0,0,0,0,0,0,-37,32767,32767,0,-8,0,-3,0,0,-8,0,0,-3,-8,0,0,-3,0,0,0,-3,-37,-7,-7,-10,-8,32767,-12,-168,-208,-715,-361,-341,-384,-457,32767,32767,32767,32767,32767,32767,32767,32767,32767,32767,32767,32767,32767,32767,32767,32767,32767,32767,32767,32767,32767,32767,-5517,-1793,-1001,-1115,-2287,-2159,-5102,-5057,-12836,-29975,-29969,-12845,-29983,-29976,-6357,-12845,-29980,-12846,-29980,-29984,-29986,-29986,-29984,-12851,-29986,-29986,-29986,-29987,-29988,-29988,-29989,-29989,-29990,-29990,32767,32767,32767,32767,-29995,-29996,-29997,-29997,-29998,-29998,-29999,-29999]} 1. e4 c6 2. d4 d5 3. Nc3 dxe4 4. Nxe4 Nf6 5. Nxf6+ exf6 6. c3 Bd6 7. Bd3 O-O 8. Qc2 Re8+ {B15: Caro-Kann: 3 Nc3: 3...g6 and 3...dxe4 4 Nxe4 Nf6 5 Nxf6+ exf6} 9. Ne2 h5 10. Be3 Nd7 11. O-O (11. O-O-O Nf8 12. c4 Be6 13. Nc3 Bb4 14. Ne4 Qa5 15. a3 Be7 16. Rhe1 f5 {½-½ (55) Savchenko,B (2562)-Artemiev,V (2706) Sochi 2018}) 11... h4 12. h3 Nf8 {LiveBook: 5 Games} 13. Rfe1 $146 ({Predecessor:} 13. Qd2 Be6 14. Rfe1 Qd7 15. Bf4 Be7 16. Be3 {½-½ (42) Pap,M (2482)-Sedlak,N (2587) Biograd na Moru 2018}) 13... Bd7 14. Bf5 Re7 15. Bxd7 Qxd7 16. Nf4 Rae8 17. Nd3 Bb8 18. Qe2 (18. Qd2 $15) 18... Qd6 19. Qf3 Ng6 20. Kf1 b6 21. Rad1 Re6 22. Bd2 Qh2 23. Rxe6 Rxe6 24. Be3 f5 25. Qxf5 Qh1+ 26. Ke2 Qxg2 27. Ne5 Bxe5 28. dxe5 Re8 ({Black should try} 28... Rxe5 $17 29. Qf3 Qxf3+ 30. Kxf3 f6) 29. Rd4 (29. e6 $5 fxe6 30. Qf3 Qxf3+ 31. Kxf3 $11) 29... c5 (29... Nxe5 $17 30. Re4 g6) 30. Re4 (30. e6 $1 $11 {was the only way to keep the balance.} fxe6 31. Qe4 Qxe4 32. Rxe4) 30... Re6 31. b4 cxb4 32. cxb4 Ne7 33. Qf3 Qxf3+ 34. Kxf3 Nc6 35. Rxh4 Nxe5+ 36. Ke2 Rc6 37. Re4 f6 38. f4 Ng6 39. Re8+ Kf7 40. Ra8 Rc7 41. a4 Ne7 42. a5 Nd5 43. Bd2 Ke6 44. Rd8 b5 45. Kf3 a6 46. Ra8 Rc6 47. Re8+ Kf5 48. Rd8 Nc7 49. Rd7 g6 50. Rd3 Ke6 51. Rd8 Rc4 52. Rc8 Nd5 53. Ra8 Rc6 54. Re8+ Kf5 55. Rd8 Ne7 56. Rd3 Ke6 57. Rd8 Rd6 58. Rxd6+ Kxd6 59. Bc3 Ke6 60. Kg4 Nf5 61. Kf3 Nd6 62. Ke3 Kf5 63. Kf3 Nc4 64. Bd4 Na3 65. Bb2 Nc2 $5 66. Bc3 $8 Na3 $11 67. Bb2 Nc4 68. Bd4 Nd6 69. Bc3 Ne8 70. Bd2 Nc7 71. Bc1 Ne6 72. Be3 Nd8 73. Bb6 Ne6 74. Be3 Ng7 75. Bd4 Ne8 76. Be3 Nc7 77. Bc1 Nd5 78. Bd2 Ne7 79. Be3 Nc6 80. Bc5 Ke6 81. Kg4 Kd5 82. f5 $2 {[#]} (82. h4 $11) 82... Ne5+ $1 83. Kf4 $2 (83. Kg3 gxf5 84. h4) 83... g5+ $2 (83... Nd3+ 84. Kg4 gxf5+ 85. Kxf5 Nxc5 86. Kxf6 Ne4+ 87. Kf5 Ng3+ 88. Kg4 Ne2) 84. Ke3 Nc6 85. Kf3 (85. Ke2 $142) 85... Ke5 86. Kg4 Ke4 87. Kh5 Kxf5 88. Kh6 Nd8 89. Be7 Ne6 90. Kh7 Nf4 91. Kg7 Nxh3 92. Bxf6 g4 93. Bh4 Nf4 94. Kf7 Nd3 95. Ke7 Nxb4 96. Kd6 Nd3 97. Kd5 Nb2 98. Bg3 Nc4 99. Bc7 Kg5 100. Ke4 Kh4 (100... b4 $142 101. Bd8+ Kg6 102. Bh4 b3 103. Kd3 b2 104. Kc2 Kf5 105. Bg3 Ke4 106. Bb8 Kf3 107. Bd6 Nxd6 108. Kxb2 g3 109. Kc3 Ke4 110. Kc2 g2 111. Kd2 g1=Q 112. Kc2 Qc5+ 113. Kd2 Qb4+ 114. Kd1 Kd3 115. Kc1 Qb5 116. Kd1 Qb1#) 101. Kf4 Kh3 102. Bb6 g3 103. Bg1 Nxa5 104. Ke4 Kg2 105. Bd4 Kf1 106. Kd5 g2 107. Be3 g1=Q 108. Bxg1 Kxg1 109. Kc5 {[#]} Nc6 110. Kxc6 b4 111. Kb6 b3 112. Kxa6 b2 113. Kb5 b1=Q+ 114. Kc4 Kf2 115. Kd4 Qb5 116. Kc3 Ke3 117. Kc2 Qb4 118. Kc1 Kd3 119. Kd1 Qd2# ({Black should play} 119... Qb1#) 0-1

[Event "FIDE WCCC U10 2018"]
[Site "Santiago de Compostela"]
[Date "2018.11.15"]
[Round "11"]
[White "Uritsky, Yonathan"]
[Black "von Mettenheim, Johannes"]
[Result "1-0"]
[ECO "B11"]
[WhiteElo "1902"]
[BlackElo "1718"]
[Annotator "NA"]
[PlyCount "87"]
[EventDate "2018.11.04"]
[EventType "swiss"]
[EventCountry "ESP"]
[SourceTitle "playchess.com"]
[Source "ChessBase"]
[SourceQuality "1"]
[TimeControl "40/5400+30:1800+30"]

{[%evp 8,87,25,32767,32767,20,13,-20,20,14,35,19,20,22,41,32767,41,39,32767,24,49,32767,32767,32767,32767,32767,32767,32767,32767,32767,32767,32767,32767,32767,32767,686,32767,715,32767,32767,32767,32767,32767,32767,32767,32767,32767,32767,32767,998,993,32767,32767,819,32767,807,32767,32767,32767,854,32767,1006,32767,2612,2011,3373,29987,923,29983,29984,29984,29982,32767,29991,29992,29992,29992,29993,29995,29991,32767,29992]} 1. e4 {[%emt 0:00:00]} c6 {[%emt 0:00:00]} 2. Nf3 {[%emt 0:00:40]} d5 {[%emt 0:00:00]} 3. Nc3 {[%emt 0:00:26]} Bg4 {[%emt 0:00:04]} 4. h3 {[%emt 0:00:34]} Bxf3 {[%emt 0:00:06]} 5. Qxf3 {[%emt 0:00:06]} Nf6 {[%emt 0:00:05]} 6. d3 {[%emt 0:18:08]} e6 {[%emt 0:01:15]} 7. g3 {[%emt 0:01:42] LiveBook: 54 Games} Qb6 {[%emt 0:00:21] B11: Caro-Kann: Two Knights Variation} (7... Bb4 8. Bd2 d4 9. Nb1 Qb6 10. Bg2 O-O 11. O-O a5 12. Bc1 a4 13. a3 Be7 14. Nd2 Nbd7 15. Qe2 Qc7 16. f4 b5 {0-1 (43) Andriasian,Z (2603)-Shimanov,A (2626) chess.com INT 2018}) 8. Bg2 {[%emt 0:00:48]} Nbd7 {[%emt 0:00:19]} 9. a4 $146 {[%emt 0:02:27]} ({Predecessor:} 9. O-O Be7 10. Qe2 d4 11. Nb1 O-O 12. f4 Qc7 13. Nd2 Rab8 14. Nf3 c5 15. g4 {½-½ (35) Kovanova,B (2334)-Gunina,V (2347) St Petersburg 2007}) 9... Bb4 {[%emt 0:06:13]} 10. O-O {[%emt 0:01:18]} Bxc3 {[%emt 0:00:17]} 11. bxc3 {[%emt 0:00:11]} dxe4 {[%emt 0:00:06]} 12. dxe4 {[%emt 0:00:11]} O-O {[%emt 0:00:42]} 13. Ba3 {[%emt 0:02:24]} Rfe8 {[%emt 0:02:02]} 14. Rfd1 {[%emt 0:13:04]} Nc5 {[%emt 0:02:22]} 15. Rdb1 {[%emt 0:06:14]} Qa5 {[%emt 0:01:08]} 16. Bb4 {[%emt 0:00:31]} Qb6 {[%emt 0:00:25]} 17. a5 {[%emt 0:00:13]} Qc7 {[%emt 0:02:36]} 18. Bxc5 {[%emt 0:00:17]} Nd7 {[%emt 0:00:16]} 19. Be3 {[%emt 0:00:21]} Qe5 {[%emt 0:00:13]} 20. Bf4 {[%emt 0:00:47]} Qf6 {[%emt 0:00:44]} 21. Bd6 {[%emt 0:00:35]} Qxf3 {[%emt 0:01:38]} 22. Bxf3 {[%emt 0:00:06]} b5 {[%emt 0:00:15]} 23. e5 {[%emt 0:00:18]} Rac8 {[%emt 0:00:11]} 24. c4 {[%emt 0:00:27]} a6 {[%emt 0:00:16]} 25. Rb2 {[%emt 0:00:42]} f6 {[%emt 0:00:17]} 26. cxb5 {[%emt 0:00:48]} axb5 {[%emt 0:00:08]} 27. exf6 {[%emt 0:00:40]} Nxf6 {[%emt 0:01:09]} 28. a6 {[%emt 0:00:07]} Nd5 {[%emt 0:00:06]} 29. Bxd5 {[%emt 0:00:14]} exd5 {[%emt 0:00:04]} 30. a7 {[%emt 0:00:11]} Ra8 {[%emt 0:00:01]} 31. Bb8 {[%emt 0:00:27]} Kf7 {[%emt 0:04:22]} 32. Ra6 {[%emt 0:00:27]} Re6 {[%emt 0:00:22]} 33. Rb6 {[%emt 0:00:15]} Rg6 {[%emt 0:01:47]} 34. Ra2 {[%emt 0:00:19]} Ke7 {[%emt 0:00:09]} 35. Bf4 {[%emt 0:00:25]} Re6 {[%emt 0:27:02]} 36. Rb8 {[%emt 0:00:07]} Rxa7 {[%emt 0:00:07]} 37. Rxa7+ {[%emt 0:00:14]} Kf6 {[%emt 0:00:12]} 38. Rf8+ {[%emt 0:00:15]} Kg6 {[%emt 0:00:08]} 39. Rg8 {[%emt 0:00:04]} Re1+ {[%emt 0:12:40]} 40. Kg2 {[%emt 0:00:00]} d4 {[%emt 0:00:00]} 41. Rgxg7+ {[%emt 0:00:50]} Kf5 {[%emt 0:01:12]} 42. Raf7+ {[%emt 0:00:23]} Ke4 {[%emt 0:04:52]} 43. Re7+ {[%emt 0:00:17]} Kd5 {[%emt 0:01:29]} 44. Rxe1 {[%emt 0:00:06]} 1-0

[Event "FIDE WCCC U10 2018"]
[Site "Santiago de Compostela"]
[Date "2018.11.15"]
[Round "11"]
[White "Vetokhin, Savva"]
[Black "Kadam Om Manish"]
[Result "1-0"]
[ECO "B22"]
[WhiteElo "1874"]
[BlackElo "2025"]
[Annotator "NA"]
[PlyCount "119"]
[EventDate "2018.11.04"]
[EventType "swiss"]
[EventCountry "ESP"]
[SourceTitle "playchess.com"]
[Source "ChessBase"]
[SourceQuality "1"]
[TimeControl "40/5400+30:1800+30"]

{[%evp 8,100,9,32767,32767,32767,32767,32767,5,32767,18,4,8,-12,39,43,40,28,33,19,40,0,32767,32767,20,32767,32767,32767,30,23,32767,126,128,130,131,32767,32767,32767,131,140,131,141,32767,32767,32767,137,150,156,163,159,32767,167,32767,32767,32767,148,32767,32767,32767,32767,32767,32767,32767,202,191,32767,32767,136,152,32767,228,206,224,32767,254,32767,310,197,233,243,317,256,235,319,252,153,131,404,1211,1606,1280,12839,32767,32767,29965]} 1. e4 {[%emt 0:00:00]} c5 {[%emt 0:00:00]} 2. c3 {[%emt 0:00:00]} d5 {[%emt 0:00:00]} 3. exd5 {[%emt 0:00:00]} Qxd5 {[%emt 0:00:00]} 4. d4 {[%emt 0:00:00]} Nf6 {[%emt 0:00:14]} 5. Nf3 {[%emt 0:00:13]} e6 {[%emt 0:00:13]} 6. Na3 {[%emt 0:00:21]} a6 {[%emt 0:03:12]} 7. Nc2 {[%emt 0:01:43] B22: Sicilian: 2 c3} (7. Nc4 Nbd7 8. a4 b6 9. Be2 Bb7 10. O-O cxd4 11. Qxd4 Bc5 12. Qf4 O-O 13. Rd1 Qc6 14. Qh4 Rfd8 15. Bf4 Nf8 16. Rxd8 Rxd8 {0-1 (50) Savchenko,B (2602)-Ghaem Maghami,E (2540) Hamedan 2017}) 7... Nc6 {[%emt 0:02:07] LiveBook: 10 Games} 8. Bd3 {[%emt 0:02:23]} Be7 {[%emt 0:01:58]} 9. O-O {[%emt 0:00:18]} O-O {[%emt 0:01:07]} 10. Qe2 {[%emt 0:05:37]} Qd8 {[%emt 0:13:55]} 11. Rd1 $146 {[%emt 0:02:04]} ({Predecessor:} 11. dxc5 Bxc5 12. Bg5 h6 13. Bh4 Be7 14. Rad1 Bd7 15. Ne3 b5 16. Bb1 Ra7 17. Bxf6 Bxf6 {1-0 (35) Jeric,S (2274)-Barle,J (2374) Ljubljana 2012}) 11... cxd4 {[%emt 0:01:00]} 12. Ncxd4 {[%emt 0:00:41]} Nxd4 {[%emt 0:00:16]} 13. Nxd4 {[%emt 0:00:27]} Qc7 {[%emt 0:00:12]} 14. Qf3 {[%emt 0:08:32]} Bd6 {[%emt 0:21:45]} 15. h3 {[%emt 0:05:11]} Bd7 {[%emt 0:17:55]} 16. Bg5 {[%emt 0:07:54]} Be7 {[%emt 0:04:15]} 17. Be4 {[%emt 0:05:06]} Rab8 {[%emt 0:02:37]} 18. Qe3 {[%emt 0:09:40]} Nxe4 {[%emt 0:03:22]} 19. Bxe7 {[%emt 0:00:08]} Rfe8 {[%emt 0:00:03]} 20. Qxe4 {[%emt 0:00:37]} Rxe7 {[%emt 0:00:19]} 21. Nf5 {[%emt 0:00:10]} Ree8 {[%emt 0:00:35]} 22. Nxg7 {[%emt 0:00:39]} Kxg7 {[%emt 0:02:17]} 23. Qd4+ {[%emt 0:00:05]} Kf8 {[%emt 0:00:54]} 24. Qxd7 {[%emt 0:03:04]} Qxd7 {[%emt 0:01:12]} 25. Rxd7 {[%emt 0:00:01]} Re7 {[%emt 0:00:01]} 26. Rad1 {[%emt 0:00:23]} Ke8 {[%emt 0:00:15]} 27. R7d6 {[%emt 0:00:05]} Rc8 {[%emt 0:01:02]} 28. R1d4 {[%emt 0:00:41]} f6 {[%emt 0:01:07]} 29. f3 {[%emt 0:01:02]} Rc5 {[%emt 0:01:10]} 30. Rd8+ {[%emt 0:01:34]} Kf7 {[%emt 0:00:02]} 31. Rh4 {[%emt 0:00:22]} Kg7 {[%emt 0:04:42]} 32. Rg4+ {[%emt 0:00:14]} Rg5 {[%emt 0:00:12]} 33. Rxg5+ {[%emt 0:00:05]} fxg5 {[%emt 0:00:02]} 34. Kf2 {[%emt 0:00:07]} Kf7 {[%emt 0:00:34]} 35. Ke3 {[%emt 0:00:13]} Rc7 {[%emt 0:00:10]} 36. Ke4 {[%emt 0:01:03]} Ke7 {[%emt 0:00:38]} 37. Rd4 {[%emt 0:00:37]} Kf6 {[%emt 0:00:13]} 38. c4 {[%emt 0:01:25]} h5 {[%emt 0:01:31] [#]} (38... Rc5 $16 {was worth a try.} 39. Kd3 Re5) 39. b4 $1 {[%emt 0:00:34]} b6 {[%emt 0:06:27]} 40. c5 {[%emt 0:00:00]} bxc5 {[%emt 0:00:00]} 41. Rc4 {[%emt 0:01:01]} e5 {[%emt 0:02:00]} (41... g4 $142 42. Rxc5 (42. fxg4 hxg4 43. h4 Rh7 $16) 42... Rb7) 42. Kd5 {[%emt 0:00:28]} ({Don't take} 42. bxc5 h4 $18) (42. Rxc5 $142 Rd7 43. Rc6+ Kf7 44. Rxa6) 42... Rd7+ {[%emt 0:01:36]} 43. Kc6 {[%emt 0:01:14]} Rd4 {[%emt 0:02:12]} 44. Kxc5 {[%emt 0:00:07]} Rd2 {[%emt 0:00:09] [#]} 45. a4 $1 {[%emt 0:00:24]} Rxg2 {[%emt 0:00:49]} 46. b5 {[%emt 0:00:06]} axb5 {[%emt 0:00:02]} 47. axb5 {[%emt 0:00:03]} Rd2 $2 {[%emt 0:01:20]} (47... Ke6 48. Kc6 Rg3) 48. b6 {[%emt 0:01:36]} Rd8 {[%emt 0:00:03]} 49. b7 {[%emt 0:00:28]} Kf5 {[%emt 0:00:26]} 50. Kb6 {[%emt 0:00:06]} Rb8 {[%emt 0:00:20]} 51. Kc7 {[%emt 0:00:04]} Rh8 52. b8=Q {[%emt 0:00:03]} Rxb8 {[%emt 0:00:10]} 53. Kxb8 {[%emt 0:00:06]} g4 {[%emt 0:00:09]} 54. hxg4+ {[%emt 0:00:03]} hxg4 55. fxg4+ {[%emt 0:00:06]} Kg5 {[%emt 0:00:08]} 56. Kc7 {[%emt 0:00:06]} e4 {[%emt 0:00:03]} 57. Rxe4 {[%emt 0:00:04]} Kg6 {[%emt 0:00:04]} 58. Kd6 {[%emt 0:00:05]} Kg5 {[%emt 0:00:03]} 59. Ke5 {[%emt 0:00:06]} Kg6 {[%emt 0:00:03]} 60. Kf4 {[%emt 0:00:08]} 1-0

[Event "FIDE WCCC U10 2018"]
[Site "Santiago de Compostela"]
[Date "2018.11.15"]
[Round "11"]
[White "Kolesov, Gordey"]
[Black "Deuer, Marius"]
[Result "1/2-1/2"]
[ECO "C95"]
[WhiteElo "1823"]
[BlackElo "1695"]
[Annotator "NA RC"]
[PlyCount "173"]
[EventDate "2018.11.04"]
[EventType "swiss"]
[EventCountry "ESP"]
[SourceTitle "playchess.com"]
[Source "ChessBase"]
[SourceQuality "1"]
[TimeControl "40/5400+30:1800+30"]

1. e4 {[%emt 0:00:00]} e5 {[%emt 0:00:00]} 2. Nf3 {[%emt 0:00:00]} Nc6 {[%emt 0:00:00]} 3. Bb5 {[%emt 0:00:10]} a6 {[%emt 0:00:00]} 4. Ba4 {[%emt 0:00:14]} Nf6 {[%emt 0:00:00]} 5. O-O {[%emt 0:00:32]} Be7 {[%emt 0:00:00]} 6. Re1 {[%emt 0:00:12]} b5 {[%emt 0:00:00]} 7. Bb3 {[%emt 0:00:10]} d6 {[%emt 0:00:05]} 8. c3 {[%emt 0:00:10]} O-O {[%emt 0:00:04] LiveBook: 22299 Games} 9. h3 {[%emt 0:00:16]} Nb8 {[%emt 0:00:04]} 10. d4 {[%emt 0:00:32]} Nbd7 {[%emt 0:00:07]} 11. a4 {[%emt 0:00:27]} Rb8 {[%emt 0:03:58] C95: Closed Ruy Lopez: Breyer Variation with 10 d4} (11... Bb7 12. Nbd2 c5 13. d5 c4 14. Bc2 Qc7 15. Nf1 Rfb8 16. Ng3 g6 17. Bg5 Nc5 18. Qd2 Bc8 19. axb5 axb5 20. Nh2 Qd8 21. f4 {½-½ (32) Matsenko,S (2533)-Patel,A (2475) Irving 2018}) 12. Nbd2 {[%emt 0:09:29]} c5 {[%emt 0:06:12]} 13. Nf1 {[%emt 0:04:28]} Re8 {[%emt 0:09:00]} 14. Ng3 {[%emt 0:07:47]} h6 $146 {[%emt 0:05:31]} ({Predecessor:} 14... Bf8 15. Be3 exd4 16. cxd4 Bb7 17. axb5 axb5 18. Bf4 cxd4 19. Ng5 d5 20. Bxb8 Qxb8 21. exd5 Rxe1+ 22. Qxe1 {1-0 (35) Patel,A (2410)-Hilby,C (2401) Irving 2017}) 15. Bc2 {[%emt 0:03:40]} Bf8 16. Nf5 cxd4 {[%emt 0:08:27]} 17. cxd4 {[%emt 0:01:23]} exd4 18. N3xd4 {[%emt 0:06:12]} Bb7 {[%emt 0:08:26]} 19. axb5 {[%emt 0:06:15]} axb5 {[%emt 0:00:05]} 20. f3 {[%emt 0:01:18]} Ne5 {[%emt 0:16:07]} 21. Bf4 {[%emt 0:08:39]} Qb6 {[%emt 0:03:49]} 22. Kh1 {[%emt 0:02:33]} Rbc8 23. Bb3 {[%emt 0:02:49]} d5 {[%emt 0:09:38]} 24. exd5 {[%emt 0:03:02]} Ng6 {[%emt 0:00:05]} 25. Be3 {[%emt 0:02:19]} Nxd5 {[%emt 0:02:45]} 26. Bxd5 {[%emt 0:07:04]} Bxd5 {[%emt 0:02:20]} 27. Qd2 {[%emt 0:01:14]} Ne5 {[%emt 0:01:41]} 28. Nc2 {[%emt 0:04:35]} Qc6 {[%emt 0:01:40]} 29. Ncd4 {[%emt 0:02:07]} Qd7 {[%emt 0:03:11]} 30. Bf4 {[%emt 0:03:48]} Nc4 {[%emt 0:02:50]} 31. Qf2 $1 {[%emt 0:00:29]} Kh7 32. b3 {[%emt 0:01:20]} Rxe1+ {[%emt 0:06:36]} 33. Rxe1 {[%emt 0:00:25]} Na5 {[%emt 0:00:26]} 34. Qg3 {[%emt 0:03:35]} g6 {[%emt 0:02:01]} 35. Nxh6 {[%emt 0:03:32]} Nc6 {[%emt 0:06:28]} 36. Ng4 {[%emt 0:02:04]} Bg7 {[%emt 0:00:46]} 37. Nxc6 {[%emt 0:00:20]} Qxc6 {[%emt 0:01:09]} 38. Be5 {[%emt 0:02:59]} Re8 {[%emt 0:01:16]} 39. Qh4+ {[%emt 0:01:02]} Kg8 {[%emt 0:00:06]} 40. Nh6+ {[%emt 0:00:00]} Kf8 {[%emt 0:00:00]} 41. Qb4+ {[%emt 0:02:11]} Re7 {[%emt 0:01:00]} 42. Bxg7+ {[%emt 0:01:14]} Kxg7 {[%emt 0:00:10]} 43. Qd4+ {[%emt 0:05:21]} Kxh6 {[%emt 0:01:15]} 44. Rxe7 {[%emt 0:02:10]} Kh7 {[%emt 0:00:52]} 45. b4 {[%emt 0:03:23]} Bc4 {[%emt 0:05:34]} 46. Qe5 {[%emt 0:02:40]} Be6 {[%emt 0:00:29]} 47. Rc7 {[%emt 0:00:42]} Qa6 {[%emt 0:00:19]} 48. h4 {[%emt 0:00:51]} Bc4 {[%emt 0:01:34]} 49. h5 {[%emt 0:00:58]} gxh5 {[%emt 0:03:47]} 50. Qxh5+ {[%emt 0:00:25]} Kg7 51. Qe5+ {[%emt 0:00:31]} Kg6 {[%emt 0:01:32]} 52. Qe4+ {[%emt 0:00:25]} Kg7 {[%emt 0:00:05]} 53. Qd4+ {[%emt 0:01:49]} Kh7 {[%emt 0:00:55]} 54. Qh4+ {[%emt 0:00:53]} Kg7 {[%emt 0:04:18]} 55. Qg5+ {[%emt 0:00:21]} Kh7 {[%emt 0:00:06]} 56. Qf5+ {[%emt 0:00:16]} Kg7 {[%emt 0:00:05]} 57. Rc8 {[%emt 0:00:18]} Qh6+ {[%emt 0:00:08]} 58. Qh3 {[%emt 0:01:19]} Qc1+ {[%emt 0:04:31]} 59. Kh2 {[%emt 0:00:12]} Qd2 {[%emt 0:00:09]} 60. Qh8+ {[%emt 0:00:16]} (60. Qg4+ $142 Kf6 61. f4) 60... Kg6 {[%emt 0:00:05]} 61. Rg8+ {[%emt 0:00:30]} Kf5 {[%emt 0:00:06]} 62. Qh5+ {[%emt 0:00:52]} Ke6 {[%emt 0:00:14]} 63. Qg4+ {[%emt 0:00:15]} Kf6 {[%emt 0:00:18]} 64. Qh4+ {[%emt 0:01:13]} Kf5 {[%emt 0:01:50]} 65. f4 $2 {[%emt 0:05:16]} (65. Qe4+ Kf6 66. f4) 65... Qxf4+ {[%emt 0:04:45]} 66. Qxf4+ {[%emt 0:00:12]} Kxf4 {[%emt 0:00:11]} 67. g3+ {[%emt 0:00:18]} Ke4 {[%emt 0:00:08] [#]} 68. Rd8 $1 {[%emt 0:00:43]} Bd5 $2 {[%emt 0:00:21]} (68... Be6 $16 69. Rd2 Kf3 70. Rd3+ Ke4) 69. Kg2 {[%emt 0:00:33]} Kd4+ {[%emt 0:00:05]} 70. Kf2 {[%emt 0:00:06]} Kc4 {[%emt 0:00:08]} 71. Ke3 {[%emt 0:00:06]} Be6 {[%emt 0:00:06]} 72. Rd4+ {[%emt 0:00:12]} Kc3 {[%emt 0:00:03]} 73. g4 {[%emt 0:00:51]} Bc4 {[%emt 0:00:34]} 74. g5 {[%emt 0:00:12]} Kxb4 {[%emt 0:00:05]} 75. Ke4 {[%emt 0:00:18]} Kc3 {[%emt 0:00:22]} 76. Rd8 {[%emt 0:00:37]} (76. Rd1 $16) 76... b4 {[%emt 0:01:22]} 77. Rb8 {[%emt 0:00:15]} b3 {[%emt 0:00:04]} 78. Ke5 {[%emt 0:00:15]} Bd3 {[%emt 0:01:42]} 79. Kf6 {[%emt 0:00:35]} Bg6 {[%emt 0:00:09]} 80. Rc8+ {[%emt 0:00:04]} Kb2 81. Rb8 {[%emt 0:00:06]} Kc2 {[%emt 0:00:13]} 82. Rc8+ {[%emt 0:00:09]} Kb1 {[%emt 0:00:08]} 83. Rb8 {[%emt 0:00:06]} b2 84. Rb7 {[%emt 0:00:12]} Kc1 $5 {[%emt 0:03:12]} 85. Rc7+ $8 {[%emt 0:00:08]} Bc2 {[%emt 0:00:09]} (85... Kd2 86. Rd7+ Kc2 87. Rc7+ Kb1 $11) 86. Rb7 {[%emt 0:00:10]} Be4 $11 {[%emt 0:02:32] [#]} 87. Rxb2 $1 {[%emt 0:00:19]} 1/2-1/2